fUSD/lending_fUSD_20260427
["ID","MTS","AMOUNT","RATE_DAILY","PERIOD"]
[421192742,1777230642081,-464.0,0.00018874,2]
[421192744,1777230642091,-244.57,0.00018978,2]
[421192746,1777230642101,-435.6,0.00018978,2]
[421192749,1777230642114,-315.5,0.00018978,2]
[421192751,1777230642124,-329.2,0.00018978,2]
[421192753,1777230642133,-154.52,0.00018978,2]
[421192755,1777230642143,-400.0,0.00019,2]
[421192757,1777230642152,-1200.0,0.000195,2]
[421192759,1777230642162,-11084.07,0.00019623,2]
[421192760,1777230642173,-623.0,0.00019633,2]
[421192763,1777230642185,-1266.0,0.00019633,2]
[421192764,1777230642195,-278.258,0.00019633,2]
[421192767,1777230642204,-927.0,0.00019633,2]
[421192768,1777230642214,-1222.571,0.00019633,2]
[421192770,1777230642224,-417.479,0.00019633,2]
[421192772,1777230642234,-2475.0,0.00019633,2]
[421192775,1777230642244,-340.64360355,0.00019673,2]
[421192776,1777230642254,-500.0,0.00019673,2]
[421192778,1777230642264,-500.0,0.00019673,2]
[421192780,1777230642274,-519.9506738,0.00019673,2]
[421192782,1777230642284,-21296.31925058,0.00019769,2]
[421192785,1777230642294,-199.0,0.0002,2]
[421192787,1777230642304,-269.0,0.0002,2]
[421192789,1777230642316,-459.0,0.0002,2]
[421192791,1777230642328,-592.0,0.0002,2]
[421192793,1777230642339,-621.0,0.0002,2]
[421192795,1777230642349,-204.0,0.0002,2]
[421192797,1777230642360,-167.0,0.0002,2]
[421192799,1777230642371,-754.0,0.0002,2]
[421192800,1777230642380,-330.0,0.0002,2]
[421192802,1777230642390,-266.0,0.0002,2]
[421192804,1777230642400,-153.0,0.0002,2]
[421192806,1777230642410,-1000.0,0.00020221,2]
[421192808,1777230642419,-1000.0,0.00020221,2]
[421192810,1777230642429,-248.0,0.00020343,5]
[421192812,1777230642439,-1042.9,0.0002061,2]
[421192814,1777230642448,-1500.0,0.00020768,2]
[421192816,1777230642458,-1500.0,0.00020768,2]
[421192818,1777230642469,-217.0,0.00020935,2]
[421192820,1777230642478,-250.0,0.00020935,2]
[421192822,1777230642488,-150.0,0.00020935,2]
[421192824,1777230642497,-164.34,0.00020935,2]
[421192826,1777230642507,-166.472,0.00020935,2]
[421192828,1777230642517,-184.164,0.00020935,2]
[421192830,1777230642527,-250.305,0.00020935,2]
[421192832,1777230642537,-150.0,0.00020935,2]
[421192834,1777230642546,-150.113,0.00020935,2]
[421192836,1777230642556,-3537.654,0.00020935,2]
[421192838,1777230642566,-1349.0,0.00020935,2]
[421192840,1777230642576,-450.0,0.00021,2]
[421192842,1777230642585,-199.0,0.00021,2]
[421192844,1777230642599,-269.0,0.00021,2]
[421192846,1777230642608,-459.0,0.00021,2]
[421192848,1777230642618,-592.0,0.00021,2]
[421192850,1777230642628,-621.0,0.00021,2]
[421192852,1777230642638,-204.0,0.00021,2]
[421192854,1777230642647,-167.0,0.00021,2]
[421192856,1777230642657,-754.0,0.00021,2]
[421192858,1777230642667,-330.0,0.00021,2]
[421192860,1777230642677,-266.0,0.00021,2]
[421192862,1777230642687,-162.0,0.00021,2]
[421192863,1777230642696,-1232.07951801,0.00021161,60]
[421192864,1777230642706,-1501.61103317,0.00021316,2]
[421192865,1777230642715,-2000.0,0.00021316,2]
[421192866,1777230642725,-667.0,0.00021358,7]
[421192867,1777230642735,-160.0,0.00021581,7]
[421192868,1777230642744,-348.06141742,0.00021864,2]
[421192869,1777230642753,-150.0,0.00021918,2]
[421192870,1777230642764,-150.06998132,0.00022,60]
[421192871,1777230642774,-199.0,0.00022,2]
[421192872,1777230642784,-269.0,0.00022,2]
[421192873,1777230642794,-459.0,0.00022,2]
[421192874,1777230642805,-592.0,0.00022,2]
[421192875,1777230642815,-621.0,0.00022,2]
[421192876,1777230642825,-204.0,0.00022,2]
[421192877,1777230642834,-167.0,0.00022,2]
[421192878,1777230642844,-754.0,0.00022,2]
[421192879,1777230642854,-330.0,0.00022,2]
[421192880,1777230642864,-266.0,0.00022,2]
[421192882,1777230642873,-1255.922,0.00022633,2]
[421192883,1777230642883,-927.0,0.00022633,2]
[421192885,1777230642892,-1220.0,0.00022633,2]
[421192887,1777230642902,-416.0,0.00022633,2]
[421192890,1777230642912,-2475.0,0.00022633,2]
[421192892,1777230642922,-21296.31925058,0.00022645,2]
[421192893,1777230642932,-1042.9,0.00022695,2]
[421192895,1777230642941,-254.0,0.00022889,5]
[421192897,1777230642951,-500.0,0.00023,2]
[421192899,1777230642960,-199.0,0.00023,2]
[421192901,1777230642971,-269.0,0.00023,2]
[421192903,1777230642984,-459.0,0.00023,2]
[421192905,1777230642994,-592.0,0.00023,2]
[421192907,1777230643003,-621.0,0.00023,2]
[421192909,1777230643013,-204.0,0.00023,2]
[421192911,1777230643023,-167.0,0.00023,2]
[421192913,1777230643033,-754.0,0.00023,2]
[421192915,1777230643043,-330.0,0.00023,2]
[421192917,1777230643053,-266.0,0.00023,2]
[421192920,1777230643068,-294.67278506,0.00023577,2]
[421192922,1777230643079,-577.81759958,0.00023577,2]
[421192924,1777230643089,-624.73014435,0.00023577,2]
[421192926,1777230643099,-400.0,0.00023578,2]
[421192928,1777230643109,-150.0,0.00023935,2]
[421192930,1777230643118,-150.0,0.00023935,2]
[421192932,1777230643128,-150.0,0.00023935,2]
[421192935,1777230643138,-150.0,0.00023935,2]
[421192937,1777230643147,-150.0,0.00023935,2]
[421192939,1777230643157,-150.0,0.00023935,2]
[421192941,1777230643167,-3531.0,0.00023935,2]
[421192943,1777230643177,-199.0,0.00024,2]
[421192945,1777230643187,-269.0,0.00024,2]
[421192948,1777230643197,-459.0,0.00024,2]
[421192950,1777230643207,-592.0,0.00024,2]
[421192952,1777230643217,-621.0,0.00024,2]
[421192954,1777230643226,-204.0,0.00024,2]
[421192956,1777230643237,-167.0,0.00024,2]
[421192959,1777230643247,-754.0,0.00024,2]
[421192960,1777230643256,-330.0,0.00024,2]
[421192963,1777230643266,-266.0,0.00024,2]
[421192966,1777230643276,-656.18435999,0.00024085,7]
[421192968,1777230643286,-10746.49045465,0.0002429,7]
[421192970,1777230643297,-162.25551732,0.0002429,7]
[421192972,1777230643306,-500.0,0.00024398,2]
[421192975,1777230643316,-578.20924308,0.00024456,2]
[421192978,1777230643326,-181.08010149,0.00024456,2]
[421192981,1777230643336,-200.0,0.00024456,2]
[421192984,1777230643346,-1235.18214925,0.00024456,2]
[421192987,1777230643355,-623.58710448,0.00024456,2]
[421192990,1777230643365,-8260.13072239,0.00024456,2]
[421192993,1777230643375,-203.86501493,0.00024456,2]
[421192996,1777230643386,-211.40802048,0.00024456,2]
[421192999,1777230643395,-151.0,0.00024456,2]
[421193003,1777230643405,-219.23011724,0.00024456,2]
[421193006,1777230643414,-227.34163157,0.00024456,2]
[421193009,1777230643424,-235.75327194,0.00024456,2]
[421193012,1777230643433,-244.476143,0.00024456,2]
[421193014,1777230643442,-253.52176029,0.00024456,2]
[421193016,1777230643451,-262.90206542,0.00024456,2]
[421193018,1777230643461,-272.62944185,0.00024456,2]
[421193020,1777230643470,-282.71673119,0.00024456,2]
[421193022,1777230643480,-293.17725025,0.00024456,2]
[421193024,1777230643489,-304.02480851,0.00024456,2]
[421193026,1777230643498,-181.08010149,0.00024456,2]
[421193027,1777230643508,-346.74501997,0.00024456,2]
[421193029,1777230643517,-152.0,0.00024456,2]
[421193031,1777230643527,-181.08010149,0.00024456,2]
[421193033,1777230643536,-152.0,0.00024456,2]
[421193035,1777230643546,-152.0,0.00024456,2]
[421193037,1777230643555,-272.26766677,0.00024456,2]
[421193039,1777230643565,-160.0,0.00024456,2]
[421193041,1777230643575,-599.60298507,0.00024456,2]
[421193043,1777230643585,-174.61919141,0.00024456,2]
[421193045,1777230643594,-181.08010149,0.00024456,2]
[421193047,1777230643604,-310.060193,0.000245,14]
[421193049,1777230643613,-12682.0,0.000245,2]
[421193051,1777230643623,-8565.75555911,0.00024511,2]
[421193053,1777230643632,-8882.6885148,0.00024566,2]
[421193055,1777230643642,-9211.34798985,0.00024621,2]
[421193057,1777230643652,-9552.16786547,0.00024676,2]
[421193059,1777230643660,-7537.63771552,0.00024731,2]
[421193061,1777230643670,-1042.9,0.00024781,2]
[421193063,1777230643681,-1117.0,0.00024879,2]
[421193065,1777230643691,-209.0,0.00025,2]
[421193067,1777230643701,-285.0,0.00025,2]
[421193069,1777230643710,-470.0,0.00025,2]
[421193071,1777230643720,-608.0,0.00025,2]
[421193072,1777230643730,-627.0,0.00025,2]
[421193075,1777230643740,-204.0,0.00025,2]
[421193076,1777230643750,-171.0,0.00025,2]
[421193078,1777230643759,-766.0,0.00025,2]
[421193080,1777230643769,-338.0,0.00025,2]
[421193082,1777230643779,-278.0,0.00025,2]
[421193084,1777230643788,-5529.0,0.00025,3]
[421193086,1777230643798,-187.78006526,0.00025004,2]
[421193088,1777230643807,-1280.88388878,0.00025004,2]
[421193090,1777230643816,-200.0,0.00025004,2]
[421193092,1777230643827,-187.78006526,0.00025004,2]
[421193094,1777230643836,-621.78829552,0.00025004,2]
[421193096,1777230643846,-181.08010149,0.00025004,2]
[421193098,1777230643855,-188.912387,0.00025121,14]
[421193100,1777230643865,-247.977203,0.00025121,14]
[421193102,1777230643875,-21296.31925058,0.00025521,2]
[421193104,1777230643884,-200.0,0.00025552,2]
[421193106,1777230643894,-1089.9908298,0.00025552,2]
[421193108,1777230643903,-187.78006525,0.00025552,2]
[421193110,1777230643913,-5529.0,0.000256,5]
[421193112,1777230643922,-927.0,0.00025633,2]
[421193114,1777230643931,-1220.0,0.00025633,2]
[421193116,1777230643940,-416.0,0.00025633,2]
[421193118,1777230643950,-2475.0,0.00025633,2]
[421193120,1777230643959,-11084.07,0.0002579,2]
[421193122,1777230643968,-238.0050983,0.00025825,2]
[421193125,1777230643978,-200.0,0.000261,2]
[421193127,1777230644001,-218.42886043,0.000261,2]
[421193129,1777230644010,-210.727409,0.00026156,14]
[421193131,1777230644020,-150.0,0.0002623,2]
[421193133,1777230644029,-150.0,0.0002623,2]
[421193135,1777230644039,-200.0,0.00026648,2]
[421193137,1777230644049,-1042.9,0.00026867,2]
[421193139,1777230644059,-646.65982734,0.00027195,2]
[421193141,1777230644069,-408.88966351,0.00027397,2]
[421193143,1777230644078,-500.0,0.00027397,2]
[421193145,1777230644088,-1500.0,0.00027397,2]
[421193147,1777230644097,-1282.0,0.00027397,15]
[421193149,1777230644108,-160.0,0.000274,10]
[421193151,1777230644117,-500.0,0.00027452,2]
[421193153,1777230644127,-500.0,0.00027507,2]
[421193155,1777230644137,-500.0,0.00027562,2]
[421193157,1777230644146,-500.0,0.00027617,2]
[421193159,1777230644156,-269.0,0.00027671,5]
[421193161,1777230644167,-1282.0,0.00027671,15]
[421193163,1777230644177,-500.0,0.00027672,2]
[421193165,1777230644188,-500.0,0.00027727,2]
[421193167,1777230644198,-500.0,0.00027782,2]
[421193169,1777230644207,-152.0,0.00027805,3]
[421193171,1777230644217,-500.0,0.00027837,2]
[421193173,1777230644227,-172.82413662,0.00027869,2]
[421193175,1777230644236,-500.0,0.00027892,2]
[421193177,1777230644246,-1282.0,0.00027945,15]
[421193179,1777230644256,-500.0,0.00027947,2]
[421193181,1777230644266,-150.45,0.00028,2]
[421193183,1777230644275,-500.0,0.00028002,2]
[421193185,1777230644284,-500.0,0.00028057,2]
[421193187,1777230644294,-797.88621082,0.00028071,85]
[421193189,1777230644303,-500.0,0.00028112,2]
[421193191,1777230644314,-500.0,0.00028167,2]
[421193193,1777230644324,-1282.0,0.00028219,15]
[421193195,1777230644333,-21296.31925058,0.00028396,2]
[421193197,1777230644343,-168.03,0.00028493,2]
[421193199,1777230644352,-168.02,0.00028493,30]
[421193201,1777230644362,-1282.0,0.00028493,15]
[421193203,1777230644372,-1220.0,0.00028633,2]
[421193204,1777230644382,-416.0,0.00028633,2]
[421193205,1777230644391,-1235.872,0.00028633,2]
[421193206,1777230644401,-1282.0,0.00028767,15]
[421193207,1777230644411,-1042.9,0.00028953,2]
[421193208,1777230644420,-1282.0,0.00029041,15]
[421193209,1777230644429,-1282.0,0.00029315,15]
[421193210,1777230644439,-1282.0,0.00029589,15]
[421193211,1777230644448,-1660.1983,0.00029758,2]
[421193212,1777230644459,-1282.0,0.00029863,15]
[421193213,1777230644469,-504.0,0.00029877,2]
[421193214,1777230644478,-670.58624095,0.00029934,2]
[421193215,1777230644487,-157.5,0.00029976,2]
[421193216,1777230644498,-346.0,0.0003,14]
[421193217,1777230644508,-1282.0,0.00030137,15]
[421193218,1777230644518,-152.0,0.00030405,4]
[421193219,1777230644527,-1282.0,0.00030411,15]
[421193220,1777230644538,-346.0,0.00030411,14]
[421193221,1777230644547,-150.0,0.00030481,30]
[421193222,1777230644557,-1282.0,0.00030685,15]
[421193223,1777230644566,-1577.0,0.00030792,3]
[421193224,1777230644576,-504.0,0.000309,3]
[421193225,1777230644586,-1282.0,0.00030959,15]
[421193226,1777230644595,-1042.9,0.00031038,2]
[421193227,1777230644605,-1282.0,0.00031233,15]
[421193228,1777230644614,-21296.31925058,0.00031272,2]
[421193237,1777230644999,-776.77659567,0.00031303,91]
[421193238,1777230645010,-977.2826,0.0003143,2]
[421193239,1777230645020,-5000.0,0.0003143,2]
[421193240,1777230645030,-330.0,0.00031505,30]
[421193241,1777230645039,-266.0,0.00031505,30]
[421193242,1777230645050,-153.0,0.00031505,30]
[421193243,1777230645059,-1282.0,0.00031507,15]
[421193244,1777230645069,-199.0,0.00031515,30]
[421193245,1777230645078,-269.0,0.00031515,30]
[421193246,1777230645087,-459.0,0.00031515,30]
[421193247,1777230645096,-592.0,0.00031515,30]
[421193248,1777230645106,-621.0,0.00031515,30]
[421193249,1777230645115,-204.0,0.00031515,30]
[421193250,1777230645124,-167.0,0.00031515,30]
[421193251,1777230645135,-754.0,0.00031515,30]
[421193252,1777230645144,-1220.0,0.00031633,2]
[421193253,1777230645154,-416.0,0.00031633,2]
[421193254,1777230645164,-346.0,0.00031644,14]
[421193256,1777230645174,-1282.0,0.00031781,15]
[421193257,1777230645183,-51.45255182,0.00031923,4]
[421193260,1777230645460,-452.54744818,0.00031923,4]
[421193261,1777230645470,-1577.0,0.00031981,3]
[421193262,1777230645479,-500.0,0.00032054,15]
[421193263,1777230645488,-770.45255182,0.00032055,15]
[421193264,1777230645508,-511.54744818,0.00032055,15]
[421193265,1777230645518,-150.0,0.00032219,2]
[421193266,1777230645527,-500.0,0.00032249,60]
[421193267,1777230645537,-500.0,0.00032249,60]
[421193268,1777230645547,-45.12475141,0.00032249,60]
[421193269,1777230645572,-335.71108895,0.00032249,60]
[421193270,1777230645583,-119.16415964,0.00032249,60]
[421193271,1777230645593,-500.0,0.00032249,60]
[421193272,1777230645602,-287.42760563,0.00032249,60]
[421193273,1777230645619,-224.72776667,0.00032249,60]
[421193274,1777230645628,-500.0,0.00032249,60]
[421193275,1777230645638,-500.0,0.00032249,60]
[421193276,1777230645648,-500.0,0.00032249,60]
[421193277,1777230645657,-500.0,0.00032249,60]
[421193278,1777230645666,-500.0,0.00032249,60]
[421193279,1777230645676,-500.0,0.00032249,60]
[421193280,1777230645687,-281.25,0.00032249,60]
[421193281,1777230645697,-281.25,0.00032249,60]
[421193282,1777230645707,-173.4365373,0.00032249,60]
[421193283,1777230645719,-500.0,0.00032249,60]
[421193284,1777230645728,-500.0,0.00032249,60]
[421193285,1777230645739,-500.0,0.00032249,60]
[421193286,1777230645749,-500.0,0.00032249,60]
[421193287,1777230645758,-500.0,0.00032249,60]
[421193288,1777230645768,-500.0,0.00032249,60]
[421193289,1777230645782,-500.0,0.00032249,60]
[421193290,1777230645793,-500.0,0.00032249,60]
[421193291,1777230645803,-602.7801245,0.00032249,60]
[421193292,1777230645815,-281.25,0.00032249,60]
[421193293,1777230645825,-5000.99999986,0.00032255,4]
[421193294,1777230645835,-1282.0,0.00032329,15]
[421193295,1777230645845,-150.0,0.00032342,30]
[421193296,1777230645856,-330.0,0.00032505,30]
[421193297,1777230645866,-266.0,0.00032505,30]
[421193298,1777230645878,-153.0,0.00032505,30]
[421193299,1777230645889,-199.0,0.00032515,30]
[421193300,1777230645899,-269.0,0.00032515,30]
[421193301,1777230645909,-459.0,0.00032515,30]
[421193302,1777230645919,-592.0,0.00032515,30]
[421193303,1777230645928,-529.16522171,0.00032515,30]
[421193304,1777230645945,-91.83477829,0.00032515,30]
[421193305,1777230645955,-170.89522731,0.00032515,30]
[421193308,1777230646290,-6033.0,0.00019633,2]
[421193309,1777230646300,-33.10477269,0.00032515,30]
[421193310,1777230646309,-167.0,0.00032515,30]
[421193311,1777230646319,-754.0,0.00032515,30]
[421193312,1777230646328,-576.67482475,0.00032535,94]
[421193313,1777230646338,-1282.0,0.00032603,15]
[421193314,1777230646347,-500.0,0.00032603,10]
[421193315,1777230646358,-500.0,0.00032603,10]
[421193316,1777230646368,-440.94177385,0.00032603,10]
[421193317,1777230646378,-180.26260677,0.00032603,10]
[421193318,1777230646387,-150.0,0.00032603,2]
[421193319,1777230646396,-150.0,0.00032603,2]
[421193320,1777230646405,-150.0,0.00032603,2]
[421193321,1777230646415,-150.0,0.00032603,2]
[421193322,1777230646427,-221.31840711,0.00032603,2]
[421193323,1777230646437,-695.39793187,0.00032673,2]
[421193324,1777230646448,-159.18,0.0003269,30]
[421193325,1777230646458,-1000.0,0.00032755,7]
[421193326,1777230646468,-200.0,0.00032789,2]
[421193327,1777230646478,-1000.00000099,0.00032809,7]
[421193328,1777230646489,-81712.29887218,0.0003287,7]
[421193329,1777230646499,-156.69,0.00032877,2]
[421193330,1777230646510,-156.65,0.00032877,2]
[421193331,1777230646521,-156.65,0.00032877,2]
[421193332,1777230646530,-156.65,0.00032877,2]
[421193333,1777230646540,-156.65,0.00032877,2]
[421193334,1777230646550,-156.65,0.00032877,2]
[421193335,1777230646560,-156.65,0.00032877,2]
[421193336,1777230646570,-156.65,0.00032877,2]
[421193337,1777230646579,-156.65,0.00032877,2]
[421193338,1777230646589,-1282.0,0.00032877,30]
[421193339,1777230646599,-2096.0,0.00032877,120]
[421193340,1777230646608,-565.0,0.00032877,120]
[421193341,1777230646618,-316.84,0.00032877,120]
[421193342,1777230646628,-1411.0450995,0.000329,120]
[421193343,1777230646639,-966.66214681,0.000329,120]
[421193344,1777230646650,-200.0,0.000329,12]
[421193345,1777230646661,-504.0,0.00032945,5]
[421193346,1777230646671,-160.0,0.00033,30]
[421193347,1777230646681,-482.181746,0.00033,14]
[421193348,1777230646691,-162.25551732,0.00033,7]
[421193349,1777230646701,-152.0,0.00033006,5]
[421193350,1777230646711,-152.25401,0.000331,7]
[421193351,1777230646721,-1042.9,0.00033124,5]
[421193352,1777230646731,-1153.71,0.00033151,30]
[421193353,1777230646741,-350.0,0.00033226,30]
[421193354,1777230646751,-1577.0,0.00033488,11]
[421193355,1777230646762,-330.0,0.00033505,30]
[421193356,1777230646771,-266.0,0.00033505,30]
[421193357,1777230646781,-153.0,0.00033505,30]
[421193358,1777230646791,-150.45,0.00033505,2]
[421193359,1777230646800,-199.0,0.00033515,30]
[421193360,1777230646810,-269.0,0.00033515,30]
[421193361,1777230646820,-459.0,0.00033515,30]
[421193362,1777230646830,-592.0,0.00033515,30]
[421193363,1777230646840,-621.0,0.00033515,30]
[421193364,1777230646850,-204.0,0.00033515,30]
[421193365,1777230646859,-167.0,0.00033515,30]
[421193366,1777230646868,-754.0,0.00033515,30]
[421193367,1777230646878,-316.84,0.00033562,120]
[421193368,1777230646888,-1577.0,0.00033581,11]
[421193369,1777230646897,-159.18,0.0003359,69]
[421193370,1777230646908,-150.0,0.0003383,2]
[421193371,1777230646918,-1411.0450995,0.000339,120]
[421193372,1777230646929,-966.66214681,0.000339,120]
[421193373,1777230646940,-504.0,0.00033968,6]
[421193374,1777230646950,-183.21,0.00034,90]
[421193375,1777230646960,-160.0,0.00034,120]
[421193376,1777230646969,-21296.31925058,0.00034148,2]
[421193377,1777230646979,-2000.0,0.0003419,120]
[421193378,1777230646990,-500.0,0.0003419,120]
[421193379,1777230646999,-159.53,0.00034202,30]
[421193380,1777230647008,-1577.0,0.00034308,11]
[421193381,1777230647019,-250.0,0.00034425,7]
[421193382,1777230647028,-250.0,0.00034425,7]
[421193383,1777230647038,-250.0,0.00034425,7]
[421193384,1777230647047,-195.0,0.00034452,120]
[421193385,1777230647057,-316.84,0.00034466,120]
[421193387,1777230647067,-159.18,0.000345,98]
[421193388,1777230647077,-330.0,0.00034505,30]
[421193389,1777230647088,-266.0,0.00034505,30]
[421193390,1777230647098,-153.0,0.00034505,30]
[421193391,1777230647108,-199.0,0.00034515,30]
[421193392,1777230647119,-269.0,0.00034515,30]
[421193393,1777230647128,-459.0,0.00034515,30]
[421193394,1777230647138,-592.0,0.00034515,30]
[421193395,1777230647147,-621.0,0.00034515,30]
[421193396,1777230647157,-204.0,0.00034515,30]
[421193397,1777230647167,-167.0,0.00034515,30]
[421193398,1777230647176,-754.0,0.00034515,30]
[421193399,1777230647186,-316.72,0.000346,13]
[421193400,1777230647196,-1220.0,0.00034633,2]
[421193401,1777230647207,-416.0,0.00034633,2]
[421193402,1777230647217,-1577.0,0.0003467,11]
[421193403,1777230647226,-1577.0,0.0003467,11]
[421193404,1777230647236,-1577.0,0.0003467,11]
[421193405,1777230647246,-151.0,0.0003467,7]
[421193406,1777230647255,-1500.0,0.00034795,2]
[421193407,1777230647265,-247.33290603,0.00034816,7]
[421193408,1777230647275,-150.0,0.00034816,7]
[421193409,1777230647285,-152.88062369,0.00034816,7]
[421193410,1777230647295,-150.00000001,0.00034816,7]
[421193411,1777230647304,-250.0,0.00034816,7]
[421193413,1777230647314,-150.00000001,0.00034816,7]
[421193415,1777230647324,-223.61518874,0.00034816,7]
[421193416,1777230647333,-253.82744391,0.00034816,7]
[421193418,1777230647343,-152.1696705,0.00034816,7]
[421193420,1777230647352,-291.88528155,0.00034816,7]
[421193422,1777230647362,-281.97690211,0.00034841,30]
[421193424,1777230647372,-1411.0450995,0.000349,120]
[421193425,1777230647382,-966.66214681,0.000349,120]
[421193426,1777230647392,-1277.0,0.00034948,11]
[421193427,1777230647402,-1577.0,0.0003499,11]
[421193428,1777230647412,-504.0,0.00034991,7]
[421193430,1777230647422,-1577.0,0.00035086,11]
[421193432,1777230647432,-1042.9,0.0003521,7]
[421193434,1777230647443,-316.84,0.00035233,120]
[421193436,1777230647453,-4841.958,0.00035285,41]
[421193438,1777230647462,-349.466,0.00035285,41]
[421193439,1777230647473,-400.0,0.00035355,2]
[421193440,1777230647483,-400.0,0.00035355,2]
[421193441,1777230647494,-400.0,0.00035355,2]
[421193442,1777230647505,-400.0,0.00035355,2]
[421193443,1777230647514,-400.0,0.00035355,2]
[421193444,1777230647524,-400.0,0.00035355,2]
[421193445,1777230647534,-400.0,0.00035355,2]
[421193446,1777230647547,-400.0,0.00035355,2]
[421193447,1777230647556,-400.0,0.00035355,2]
[421193448,1777230647566,-178.0,0.00035355,2]
[421193449,1777230647576,-1577.0,0.00035396,11]
[421193450,1777230647586,-397.96,0.000354,114]
[421193451,1777230647595,-721.12765535,0.00035412,2]
[421193452,1777230647605,-346.0,0.00035441,30]
[421193453,1777230647615,-330.0,0.00035505,30]
[421193454,1777230647624,-266.0,0.00035505,30]
[421193455,1777230647634,-153.0,0.00035505,30]
[421193456,1777230647643,-199.0,0.00035515,30]
[421193457,1777230647653,-269.0,0.00035515,30]
[421193458,1777230647662,-459.0,0.00035515,30]
[421193459,1777230647672,-592.0,0.00035515,30]
[421193460,1777230647682,-621.0,0.00035515,30]
[421193461,1777230647692,-204.0,0.00035515,30]
[421193462,1777230647702,-167.0,0.00035515,30]
[421193463,1777230647712,-754.0,0.00035515,30]
[421193464,1777230647722,-150.0,0.00035522,2]
[421193465,1777230647732,-200.0,0.0003553,30]
[421193466,1777230647742,-200.0,0.0003553,30]
[421193467,1777230647752,-200.0,0.0003553,30]
[421193468,1777230647761,-344.0,0.0003553,30]
[421193469,1777230647770,-151.0,0.0003559,2]
[421193470,1777230647783,-200.0,0.000356,14]
[421193471,1777230647794,-3811.0,0.000356,7]
[421193472,1777230647804,-152.0,0.00035606,6]
[421193473,1777230647814,-300.0,0.00035616,5]
[421193474,1777230647824,-1411.0450995,0.000359,120]
[421193475,1777230647834,-966.66214681,0.000359,120]
[421193476,1777230647844,-162.25551732,0.00036,7]
[421193477,1777230647855,-504.0,0.00036014,9]
[421193478,1777230647865,-212.71,0.00036063,30]
[421193479,1777230647875,-305.04,0.00036132,30]
[421193480,1777230647886,-340.78,0.00036132,30]
[421193481,1777230647897,-160.0,0.0003618,2]
[421193482,1777230647907,-316.84,0.00036219,120]
[421193483,1777230647916,-397.96,0.0003631,120]
[421193484,1777230647926,-309.26177097,0.00036377,7]
[421193485,1777230647937,-600.0,0.00036438,5]
[421193486,1777230647947,-1577.0,0.00036442,11]
[421193487,1777230647959,-330.0,0.00036505,30]
[421193488,1777230647968,-266.0,0.00036505,30]
[421193489,1777230647978,-153.0,0.00036505,30]
[421193490,1777230647988,-199.0,0.00036515,30]
[421193491,1777230647998,-269.0,0.00036515,30]
[421193492,1777230648010,-459.0,0.00036515,30]
[421193493,1777230648020,-592.0,0.00036515,30]
[421193494,1777230648030,-621.0,0.00036515,30]
[421193495,1777230648039,-204.0,0.00036515,30]
[421193496,1777230648049,-167.0,0.00036515,30]